Workbook

Sheet Bidder 1-5
A1: Grid for the technical assessment of bids below the EU threshold | O1: Bidder 1 to 5
A2: Org. unit | C2: NRM/CC | G2: Project title | L2: Date | M2: Date
A3: Officer responsible for the commission | G3: Project title: Engagement of Technical agency for Green Recovery Action Plan on Climate Resilient Livelihood for Migrants | L3: PN | M3: PN: 18.2255.0-001
A4: Assessor | C4: Name | L4: Contract no. | M4: Contract no.
A5: Version | C5: Individual assessment/overall assessment | M5: ="Bidder 1 to 5 of "&TEXT(IF(COUNTA('Bidder 6-10'!E11:E37,'Bidder 6-10'!G11:G37,'Bidder 6-10'!I11:I37,'Bidder 6-10'!K11:K37,'Bidder 6-10'!M11:M37)+COUNTA('Bidder 6-10'!E39:E110,'Bidder 6-10'!G39:G110,'Bidder 6-10'!I39:I110,'Bidder 6-10'!K39:K110,'Bidder 6-10'!M39:M110)>0,"10","5"),"0") -> Bidder 1 to 5 of 5 | O5: (automatically increases to 10, if entries were made on sheet 'Bidder 6-10')
E6: Enter bidder 1 | G6: Enter bidder 2 | I6: Enter bidder 3 | K6: Enter bidder 4 | M6: Enter bidder 5
B7: (1) | D7: (2) | E7: (3) | F7: (4) | G7: (3) | H7: (4) | I7: (3) | J7: (4) | K7: (3) | L7: (4) | M7: (3) | N7: (4)
B8: Criterion | D8: Weighting | E8: Points | F8: Assessment | G8: Points | H8: Assessment | I8: Points | J8: Assessment | K8: Points | L8: Assessment | M8: Points | N8: Assessment
D9: in % | E9: (max.10) | F9: (2)x(3) | G9: (max.10) | H9: (2)x(3) | I9: (max.10) | J9: (2)x(3) | K9: (max.10) | L9: (2)x(3) | M9: (max.10) | N9: (2)x(3)
A10: 1 | B10: Assessment of technical-methodological design | P10: =IF(ISBLANK(B10),A10,B10) -> Assessment of technical-methodological design
A11: 1.1 | B11: Strategy | P11: =IF(ISBLANK(B11),A11,B11) -> Strategy
A12: 1.1.1 | B12: Interpretation of the objectives in the ToRs, critical examination of tasks | D12: 3% | F12: =$D12*E12*100 -> 0.0 | H12: =$D12*G12*100 -> 0.0 | J12: =$D12*I12*100 -> 0.0 | L12: =$D12*K12*100 -> 0.0 | N12: =$D12*M12*100 -> 0.0 | P12: Interpretation of the objectives in the ToRs, critical examination of tasks
A13: 1.1.2 | B13: Description and justification of the contractor's strategy for delivering the services put out to tender. | D13: 5% | F13: =$D13*E13*100 -> 0.0 | H13: =$D13*G13*100 -> 0.0 | J13: =$D13*I13*100 -> 0.0 | L13: =$D13*K13*100 -> 0.0 | N13: =$D13*M13*100 -> 0.0 | P13: Description and justification of the contractor's strategy for delivering the services put out to tender.
A14: Interim total 1.1 | D14: =SUM(D12:D13) -> 8% | F14: =SUM(F12:F13) -> 0.0 | H14: =SUM(H12:H13) -> 0.0 | J14: =SUM(J12:J13) -> 0.0 | L14: =SUM(L12:L13) -> 0.0 | N14: =SUM(N12:N13) -> 0.0 | P14: Interim total 1.1
A15: 1.2 | B15: Cooperation | P15: Cooperation
A16: 1.2.1 | B16: Presentation and interaction between the relevant actors in the contractor's area of responsibility | D16: 2% | F16: =$D16*E16*100 -> 0.0 | H16: =$D16*G16*100 -> 0.0 | J16: =$D16*I16*100 -> 0.0 | L16: =$D16*K16*100 -> 0.0 | N16: =$D16*M16*100 -> 0.0 | P16: Presentation and interaction between the relevant actors in the contractor's area of responsibility
A17: 1.2.2 | B17: Strategy for establishing cooperation and then cooperating with the relevant actors | D17: 3% | F17: =$D17*E17*100 -> 0.0 | H17: =$D17*G17*100 -> 0.0 | J17: =$D17*I17*100 -> 0.0 | L17: =$D17*K17*100 -> 0.0 | N17: =$D17*M17*100 -> 0.0 | P17: Strategy for establishing cooperation and then cooperating with the relevant actors
A18: Interim total 1.2 | D18: =SUM(D16:D17) -> 5% | F18: =SUM(F16:F17) -> 0.0 | H18: =SUM(H16:H17) -> 0.0 | J18: =SUM(J16:J17) -> 0.0 | L18: =SUM(L16:L17) -> 0.0 | N18: =SUM(N16:N17) -> 0.0 | P18: Interim total 1.2
A19: 1.3 | B19: Steering structure | P19: Steering structure
A20: 1.3.1 | B20: Approach and procedure for steering the measures with the project partners | D20: 2% | F20: =$D20*E20*100 -> 0.0 | H20: =$D20*G20*100 -> 0.0 | J20: =$D20*I20*100 -> 0.0 | L20: =$D20*K20*100 -> 0.0 | N20: =$D20*M20*100 -> 0.0 | P20: Approach and procedure for steering the measures with the project partners
A21: 1.3.2 | B21: Description of contractor's contribution to results monitoring and the associated challenges | D21: 2% | F21: =$D21*E21*100 -> 0.0 | H21: =$D21*G21*100 -> 0.0 | J21: =$D21*I21*100 -> 0.0 | L21: =$D21*K21*100 -> 0.0 | N21: =$D21*M21*100 -> 0.0 | P21: Description of contractor's contribution to results monitoring and the associated challenges
A22: Interim total 1.3 | D22: =SUM(D20:D21) -> 4% | F22: =SUM(F20:F21) -> 0.0 | H22: =SUM(H20:H21) -> 0.0 | J22: =SUM(J20:J21) -> 0.0 | L22: =SUM(L20:L21) -> 0.0 | N22: =SUM(N20:N21) -> 0.0 | P22: Interim total 1.3
A23: 1.4 | B23: Processes | P23: Processes
A24: 1.4.1 | B24: Presentation and explanation of the implementation plan: work steps, milestones, schedule | D24: 4% | F24: =$D24*E24*100 -> 0.0 | H24: =$D24*G24*100 -> 0.0 | J24: =$D24*I24*100 -> 0.0 | L24: =$D24*K24*100 -> 0.0 | N24: =$D24*M24*100 -> 0.0 | P24: Presentation and explanation of the implementation plan: work steps, milestones, schedule
A25: 1.4.2 | B25: Presentation and explanation of the integration of the partner contributions | D25: 2% | F25: =$D25*E25*100 -> 0.0 | H25: =$D25*G25*100 -> 0.0 | J25: =$D25*I25*100 -> 0.0 | L25: =$D25*K25*100 -> 0.0 | N25: =$D25*M25*100 -> 0.0 | P25: Presentation and explanation of the integration of the partner contributions
A26: Interim total 1.4 | D26: =SUM(D24:D25) -> 6% | F26: =SUM(F24:F25) -> 0.0 | H26: =SUM(H24:H25) -> 0.0 | J26: =SUM(J24:J25) -> 0.0 | L26: =SUM(L24:L25) -> 0.0 | N26: =SUM(N24:N25) -> 0.0 | P26: Interim total 1.4
A27: 1.5 | B27: Learning and innovation | P27: Learning and innovation
A28: 1.5.1 | B28: Contractor's contribution to knowledge management at the partner and at GIZ | D28: 2% | F28: =$D28*E28*100 -> 0.0 | H28: =$D28*G28*100 -> 0.0 | J28: =$D28*I28*100 -> 0.0 | L28: =$D28*K28*100 -> 0.0 | N28: =$D28*M28*100 -> 0.0 | P28: Contractor's contribution to knowledge management at the partner and at GIZ
A29: 1.5.2 | B29: Presentation and explanation of the measures undertaken by the contractor to promote scaling-up effects | D29: 2% | F29: =$D29*E29*100 -> 0.0 | H29: =$D29*G29*100 -> 0.0 | J29: =$D29*I29*100 -> 0.0 | L29: =$D29*K29*100 -> 0.0 | N29: =$D29*M29*100 -> 0.0 | P29: Presentation and explanation of the measures undertaken by the contractor to promote scaling-up effects
A30: Interim total 1.5 | D30: =SUM(D28:D29) -> 4% | F30: =SUM(F28:F29) -> 0.0 | H30: =SUM(H28:H29) -> 0.0 | J30: =SUM(J28:J29) -> 0.0 | L30: =SUM(L28:L29) -> 0.0 | N30: =SUM(N28:N29) -> 0.0 | P30: Interim total 1.5
A31: 1.6 | B31: Project management of the contractor | P31: Project management of the contractor
A32: 1.6.1 | B32: Approach and procedure for coordination with/in GIZ project | D32: 2% | F32: =$D32*E32*100 -> 0.0 | H32: =$D32*G32*100 -> 0.0 | J32: =$D32*I32*100 -> 0.0 | L32: =$D32*K32*100 -> 0.0 | N32: =$D32*M32*100 -> 0.0 | P32: Approach and procedure for coordination with/in GIZ project
A33: 1.6.2 | B33: Personnel assignment plan (who, when, what work steps) incl. explanation and specification of expert months | D33: 2% | F33: =$D33*E33*100 -> 0.0 | H33: =$D33*G33*100 -> 0.0 | J33: =$D33*I33*100 -> 0.0 | L33: =$D33*K33*100 -> 0.0 | N33: =$D33*M33*100 -> 0.0 | P33: Personnel assignment plan (who, when, what work steps) incl. explanation and specification of expert months
A34: 1.6.3 | B34: Contractor's backstopping strategy (incl. CVs of the technical and administrative backstopper) | D34: 2% | F34: =$D34*E34*100 -> 0.0 | H34: =$D34*G34*100 -> 0.0 | J34: =$D34*I34*100 -> 0.0 | L34: =$D34*K34*100 -> 0.0 | N34: =$D34*M34*100 -> 0.0 | P34: Contractor's backstopping strategy (incl. CVs of the technical and administrative backstopper)
A35: Interim total 1.6 | D35: =SUM(D32:D34) -> 6% | F35: =SUM(F32:F34) -> 0.0 | H35: =SUM(H32:H34) -> 0.0 | J35: =SUM(J32:J34) -> 0.0 | L35: =SUM(L32:L34) -> 0.0 | N35: =SUM(N32:N34) -> 0.0 | P35: Interim total 1.6
A36: 1.7 | B36: Further requirements | D36: 2% | F36: =$D36*E36*100 -> 0.0 | H36: =$D36*G36*100 -> 0.0 | J36: =$D36*I36*100 -> 0.0 | L36: =$D36*K36*100 -> 0.0 | N36: =$D36*M36*100 -> 0.0 | P36: Further requirements
A37: Total 1 | D37: =SUM(D14,D18,D22,D26,D30,D35,D36) -> 35% | F37: =SUM(F14,F18,F22,F26,F30,F35,F36) -> 0.0 | H37: =SUM(H14,H18,H22,H26,H30,H35,H36) -> 0.0 | J37: =SUM(J14,J18,J22,J26,J30,J35,J36) -> 0.0 | L37: =SUM(L14,L18,L22,L26,L30,L35,L36) -> 0.0 | N37: =SUM(N14,N18,N22,N26,N30,N35,N36) -> 0.0 | P37: Total 1
A38: 2 | B38: Assessment of proposed staff | P38: Assessment of proposed staff
A39: 2.1 | B39: Team leader (in accordance with ToR provisions/criteria) | P39: Team leader (in accordance with ToR provisions/criteria)
A40: 2.1.1 | B40: - Qualifications | D40: 5% | F40: =$D40*E40*100 -> 0.0 | H40: 0.0 | J40: =$D40*I40*100 -> 0.0 | L40: =$D40*K40*100 -> 0.0 | N40: =$D40*M40*100 -> 0.0 | P40: - Qualifications
A41: 2.1.2 | B41: - Language | D41: 4% | F41: 0.0 | H41: 0.0 | J41: =$D41*I41*100 -> 0.0 | L41: =$D41*K41*100 -> 0.0 | N41: =$D41*M41*100 -> 0.0 | P41: - Language
A42: 2.1.3 | B42: - General professional experience | D42: 8% | F42: 0.0 | H42: 0.0 | J42: =$D42*I42*100 -> 0.0 | L42: =$D42*K42*100 -> 0.0 | N42: =$D42*M42*100 -> 0.0 | P42: - General professional experience
A43: 2.1.4 | B43: - Specific professional experience | D43: 8% | F43: 0.0 | H43: 0.0 | J43: =$D43*I43*100 -> 0.0 | L43: =$D43*K43*100 -> 0.0 | N43: =$D43*M43*100 -> 0.0 | P43: - Specific professional experience
A44: 2.1.5 | B44: - Leadership/management experience | D44: 8% | F44: 0.0 | H44: 0.0 | J44: =$D44*I44*100 -> 0.0 | L44: =$D44*K44*100 -> 0.0 | N44: =$D44*M44*100 -> 0.0 | P44: - Leadership/management experience
A45: 2.1.6 | B45: - Regional experience | D45: 4% | F45: 0.0 | H45: 0.0 | J45: =$D45*I45*100 -> 0.0 | L45: =$D45*K45*100 -> 0.0 | N45: =$D45*M45*100 -> 0.0 | P45: - Regional experience
A46: 2.1.7 | B46: - Development cooperation experience | D46: 2% | F46: 0.0 | H46: 0.0 | J46: =$D46*I46*100 -> 0.0 | L46: =$D46*K46*100 -> 0.0 | N46: =$D46*M46*100 -> 0.0 | P46: - Development cooperation experience
A47: 2.1.8 | B47: - Other | D47: 0% | F47: =$D47*E47*100 -> 0.0 | H47: =$D47*G47*100 -> 0.0 | J47: =$D47*I47*100 -> 0.0 | L47: =$D47*K47*100 -> 0.0 | N47: =$D47*M47*100 -> 0.0 | P47: - Other
A48: Interim total 2.1 | D48: =SUM(D40:D47) -> 39% | F48: =SUM(F40:F47) -> 0.0 | H48: =SUM(H40:H47) -> 0.0 | J48: =SUM(J40:J47) -> 0.0 | L48: =SUM(L40:L47) -> 0.0 | N48: =SUM(N40:N47) -> 0.0 | P48: Interim total 2.1
A49: 2.2 | B49: Expert 1 (in accordance with ToR provisions/criteria) | P49: Expert 1 (in accordance with ToR provisions/criteria)
A50: 2.2.1 | B50: - Qualifications | D50: 5% | F50: =$D50*E50*100 -> 0.0 | H50: 0.0 | J50: =$D50*I50*100 -> 0.0 | L50: =$D50*K50*100 -> 0.0 | N50: =$D50*M50*100 -> 0.0 | P50: - Qualifications
A51: 2.2.2 | B51: - Language | D51: 3% | F51: 0.0 | H51: 0.0 | J51: =$D51*I51*100 -> 0.0 | L51: =$D51*K51*100 -> 0.0 | N51: =$D51*M51*100 -> 0.0 | P51: - Language
A52: 2.2.3 | B52: - General professional experience | D52: 8% | F52: 0.0 | H52: 0.0 | J52: =$D52*I52*100 -> 0.0 | L52: =$D52*K52*100 -> 0.0 | N52: =$D52*M52*100 -> 0.0 | P52: - General professional experience
A53: 2.2.4 | B53: - Specific professional experience | D53: 8% | F53: 0.0 | H53: 0.0 | J53: =$D53*I53*100 -> 0.0 | L53: =$D53*K53*100 -> 0.0 | N53: =$D53*M53*100 -> 0.0 | P53: - Specific professional experience
A54: 2.2.5 | B54: - Leadership/management experience | D54: 0% | F54: 0.0 | H54: 0.0 | J54: =$D54*I54*100 -> 0.0 | L54: =$D54*K54*100 -> 0.0 | N54: =$D54*M54*100 -> 0.0 | P54: - Leadership/management experience
A55: 2.2.6 | B55: - Regional experience | D55: 2% | F55: 0.0 | H55: 0.0 | J55: =$D55*I55*100 -> 0.0 | L55: =$D55*K55*100 -> 0.0 | N55: =$D55*M55*100 -> 0.0 | P55: - Regional experience
A56: 2.2.7 | B56: - Development cooperation experience | D56: 0% | F56: 0.0 | H56: 0.0 | J56: =$D56*I56*100 -> 0.0 | L56: =$D56*K56*100 -> 0.0 | N56: =$D56*M56*100 -> 0.0 | P56: - Development cooperation experience
A57: 2.2.8 | B57: - Other | D57: 0% | F57: =$D57*E57*100 -> 0.0 | H57: =$D57*G57*100 -> 0.0 | J57: =$D57*I57*100 -> 0.0 | L57: =$D57*K57*100 -> 0.0 | N57: =$D57*M57*100 -> 0.0 | P57: - Other
A58: Interim total 2.2 | D58: =SUM(D50:D57) -> 26% | F58: =SUM(F50:F57) -> 0.0 | H58: =SUM(H50:H57) -> 0.0 | J58: =SUM(J50:J57) -> 0.0 | L58: =SUM(L50:L57) -> 0.0 | N58: =SUM(N50:N57) -> 0.0 | P58: Interim total 2.2
A59: 2.3 | B59: Expert 2 (in accordance with ToR provisions/criteria) | P59: Expert 2 (in accordance with ToR provisions/criteria)
A60: 2.3.1 | B60: - Qualifications | F60: =$D60*E60*100 -> 0.0 | H60: 0.0 | J60: =$D60*I60*100 -> 0.0 | L60: =$D60*K60*100 -> 0.0 | N60: =$D60*M60*100 -> 0.0 | P60: - Qualifications
A61: 2.3.2 | B61: - Language | F61: 0.0 | H61: 0.0 | J61: =$D61*I61*100 -> 0.0 | L61: =$D61*K61*100 -> 0.0 | N61: =$D61*M61*100 -> 0.0 | P61: - Language
A62: 2.3.3 | B62: - General professional experience | F62: 0.0 | H62: 0.0 | J62: =$D62*I62*100 -> 0.0 | L62: =$D62*K62*100 -> 0.0 | N62: =$D62*M62*100 -> 0.0 | P62: - General professional experience
A63: 2.3.4 | B63: - Specific professional experience | F63: 0.0 | H63: 0.0 | J63: =$D63*I63*100 -> 0.0 | L63: =$D63*K63*100 -> 0.0 | N63: =$D63*M63*100 -> 0.0 | P63: - Specific professional experience
A64: 2.3.5 | B64: - Leadership/management experience | F64: 0.0 | H64: 0.0 | J64: =$D64*I64*100 -> 0.0 | L64: =$D64*K64*100 -> 0.0 | N64: =$D64*M64*100 -> 0.0 | P64: - Leadership/management experience
A65: 2.3.6 | B65: - Regional experience | F65: 0.0 | H65: 0.0 | J65: =$D65*I65*100 -> 0.0 | L65: =$D65*K65*100 -> 0.0 | N65: =$D65*M65*100 -> 0.0 | P65: - Regional experience
A66: 2.3.7 | B66: - Development cooperation experience | F66: 0.0 | H66: 0.0 | J66: =$D66*I66*100 -> 0.0 | L66: =$D66*K66*100 -> 0.0 | N66: =$D66*M66*100 -> 0.0 | P66: - Development cooperation experience
A67: 2.3.8 | B67: - Other | F67: =$D67*E67*100 -> 0.0 | H67: =$D67*G67*100 -> 0.0 | J67: =$D67*I67*100 -> 0.0 | L67: =$D67*K67*100 -> 0.0 | N67: =$D67*M67*100 -> 0.0 | P67: - Other
A68: Interim total 2.3 | D68: =SUM(D60:D67) -> 0% | F68: =SUM(F60:F67) -> 0.0 | H68: =SUM(H60:H67) -> 0.0 | J68: =SUM(J60:J67) -> 0.0 | L68: =SUM(L60:L67) -> 0.0 | N68: =SUM(N60:N67) -> 0.0 | P68: Interim total 2.3
A69: 2.4 | B69: Expert 3 (in accordance with ToR provisions/criteria) | P69: Expert 3 (in accordance with ToR provisions/criteria)
A70: 2.4.1 | B70: - Qualifications | F70: =$D70*E70*100 -> 0.0 | H70: 0.0 | J70: =$D70*I70*100 -> 0.0 | L70: =$D70*K70*100 -> 0.0 | N70: =$D70*M70*100 -> 0.0 | P70: - Qualifications
A71: 2.4.2 | B71: - Language | F71: 0.0 | H71: 0.0 | J71: =$D71*I71*100 -> 0.0 | L71: =$D71*K71*100 -> 0.0 | N71: =$D71*M71*100 -> 0.0 | P71: - Language
A72: 2.4.3 | B72: - General professional experience | F72: 0.0 | H72: 0.0 | J72: =$D72*I72*100 -> 0.0 | L72: =$D72*K72*100 -> 0.0 | N72: =$D72*M72*100 -> 0.0 | P72: - General professional experience
A73: 2.4.4 | B73: - Specific professional experience | F73: 0.0 | H73: 0.0 | J73: =$D73*I73*100 -> 0.0 | L73: =$D73*K73*100 -> 0.0 | N73: =$D73*M73*100 -> 0.0 | P73: - Specific professional experience
A74: 2.4.5 | B74: - Leadership/management experience | F74: 0.0 | H74: 0.0 | J74: =$D74*I74*100 -> 0.0 | L74: =$D74*K74*100 -> 0.0 | N74: =$D74*M74*100 -> 0.0 | P74: - Leadership/management experience
A75: 2.4.6 | B75: - Regional experience | F75: 0.0 | H75: 0.0 | J75: =$D75*I75*100 -> 0.0 | L75: =$D75*K75*100 -> 0.0 | N75: =$D75*M75*100 -> 0.0 | P75: =IF(ISBLANK(B75),A75,B75) -> - Regional experience
A76: 2.4.7 | B76: - Development cooperation experience | F76: 0.0 | H76: 0.0 | J76: =$D76*I76*100 -> 0.0 | L76: =$D76*K76*100 -> 0.0 | N76: =$D76*M76*100 -> 0.0 | P76: - Development cooperation experience
A77: 2.4.8 | B77: - Other | F77: =$D77*E77*100 -> 0.0 | H77: =$D77*G77*100 -> 0.0 | J77: =$D77*I77*100 -> 0.0 | L77: =$D77*K77*100 -> 0.0 | N77: =$D77*M77*100 -> 0.0 | P77: - Other
A78: Interim total 2.4 | D78: =SUM(D70:D77) -> 0% | F78: =SUM(F70:F77) -> 0.0 | H78: =SUM(H70:H77) -> 0.0 | J78: =SUM(J70:J77) -> 0.0 | L78: =SUM(L70:L77) -> 0.0 | N78: =SUM(N70:N77) -> 0.0 | P78: Interim total 2.4
A79: 2.5 | B79: Expert 4 (in accordance with ToR provisions/criteria) | P79: Expert 4 (in accordance with ToR provisions/criteria)
A80: 2.5.1 | B80: - Qualifications | D80: 0% | F80: =$D80*E80*100 -> 0.0 | H80: 0.0 | J80: =$D80*I80*100 -> 0.0 | L80: =$D80*K80*100 -> 0.0 | N80: =$D80*M80*100 -> 0.0 | P80: - Qualifications
A81: 2.5.2 | B81: - Language | D81: 0% | F81: 0.0 | H81: 0.0 | J81: =$D81*I81*100 -> 0.0 | L81: =$D81*K81*100 -> 0.0 | N81: =$D81*M81*100 -> 0.0 | P81: - Language
A82: 2.5.3 | B82: - General professional experience | D82: 0% | F82: 0.0 | H82: 0.0 | J82: =$D82*I82*100 -> 0.0 | L82: =$D82*K82*100 -> 0.0 | N82: =$D82*M82*100 -> 0.0 | P82: - General professional experience
A83: 2.5.4 | B83: - Specific professional experience | D83: 0% | F83: 0.0 | H83: 0.0 | J83: =$D83*I83*100 -> 0.0 | L83: =$D83*K83*100 -> 0.0 | N83: =$D83*M83*100 -> 0.0 | P83: - Specific professional experience
A84: 2.5.5 | B84: - Leadership/management experience | D84: 0% | F84: 0.0 | H84: 0.0 | J84: =$D84*I84*100 -> 0.0 | L84: =$D84*K84*100 -> 0.0 | N84: =$D84*M84*100 -> 0.0 | P84: - Leadership/management experience
A85: 2.5.6 | B85: - Regional experience | D85: 0% | F85: 0.0 | H85: 0.0 | J85: =$D85*I85*100 -> 0.0 | L85: =$D85*K85*100 -> 0.0 | N85: =$D85*M85*100 -> 0.0 | P85: - Regional experience
A86: 2.5.7 | B86: - Development cooperation experience | D86: 0% | F86: 0.0 | H86: 0.0 | J86: =$D86*I86*100 -> 0.0 | L86: =$D86*K86*100 -> 0.0 | N86: =$D86*M86*100 -> 0.0 | P86: - Development cooperation experience
A87: 2.5.8 | B87: - Other | D87: 0% | F87: =$D87*E87*100 -> 0.0 | H87: =$D87*G87*100 -> 0.0 | J87: =$D87*I87*100 -> 0.0 | L87: =$D87*K87*100 -> 0.0 | N87: =$D87*M87*100 -> 0.0 | P87: - Other
A88: Interim total 2.5 | D88: =SUM(D80:D87) -> 0% | F88: =SUM(F80:F87) -> 0.0 | H88: =SUM(H80:H87) -> 0.0 | J88: =SUM(J80:J87) -> 0.0 | L88: =SUM(L80:L87) -> 0.0 | N88: =SUM(N80:N87) -> 0.0 | P88: Interim total 2.5
A89: 2.6 | B89: Short-term expert pool 1 (in accordance with ToR provisions/criteria) | P89: Short-term expert pool 1 (in accordance with ToR provisions/criteria)
A90: 2.6.1 | B90: - Qualifications | F90: =$D90*E90*100 -> 0.0 | H90: 0.0 | J90: =$D90*I90*100 -> 0.0 | L90: =$D90*K90*100 -> 0.0 | N90: =$D90*M90*100 -> 0.0 | P90: - Qualifications
A91: 2.6.2 | B91: - Language | F91: 0.0 | H91: 0.0 | J91: =$D91*I91*100 -> 0.0 | L91: =$D91*K91*100 -> 0.0 | N91: =$D91*M91*100 -> 0.0 | P91: - Language
A92: 2.6.3 | B92: - General professional experience | F92: 0.0 | H92: 0.0 | J92: =$D92*I92*100 -> 0.0 | L92: =$D92*K92*100 -> 0.0 | N92: =$D92*M92*100 -> 0.0 | P92: - General professional experience
A93: 2.6.4 | B93: - Specific professional experience | F93: 0.0 | H93: 0.0 | J93: =$D93*I93*100 -> 0.0 | L93: =$D93*K93*100 -> 0.0 | N93: =$D93*M93*100 -> 0.0 | P93: - Specific professional experience
A94: 2.6.5 | B94: - Regional experience | F94: 0.0 | H94: 0.0 | J94: =$D94*I94*100 -> 0.0 | L94: =$D94*K94*100 -> 0.0 | N94: =$D94*M94*100 -> 0.0 | P94: - Regional experience
A95: 2.6.6 | B95: - Development cooperation experience | F95: 0.0 | H95: 0.0 | J95: =$D95*I95*100 -> 0.0 | L95: =$D95*K95*100 -> 0.0 | N95: =$D95*M95*100 -> 0.0 | P95: - Development cooperation experience
A96: 2.6.7 | B96: - Other | F96: =$D96*E96*100 -> 0.0 | H96: =$D96*G96*100 -> 0.0 | J96: =$D96*I96*100 -> 0.0 | L96: =$D96*K96*100 -> 0.0 | N96: =$D96*M96*100 -> 0.0 | P96: - Other
A97: Interim total 2.6 | D97: =SUM(D90:D96) -> 0% | F97: =SUM(F90:F96) -> 0.0 | H97: =SUM(H90:H96) -> 0.0 | J97: =SUM(J90:J96) -> 0.0 | L97: =SUM(L90:L96) -> 0.0 | N97: =SUM(N90:N96) -> 0.0 | P97: Interim total 2.6
A98: 2.7 | B98: Short-term expert pool 2 (in accordance with ToR provisions/criteria) | P98: Short-term expert pool 2 (in accordance with ToR provisions/criteria)
A99: 2.7.1 | B99: - Qualifications | D99: 0% | F99: =$D99*E99*100 -> 0.0 | H99: 0.0 | J99: =$D99*I99*100 -> 0.0 | L99: =$D99*K99*100 -> 0.0 | N99: =$D99*M99*100 -> 0.0 | P99: - Qualifications
A100: 2.7.2 | B100: - Language | D100: 0% | F100: 0.0 | H100: 0.0 | J100: =$D100*I100*100 -> 0.0 | L100: =$D100*K100*100 -> 0.0 | N100: =$D100*M100*100 -> 0.0 | P100: - Language
A101: 2.7.3 | B101: - General professional experience | D101: 0% | F101: 0.0 | H101: 0.0 | J101: =$D101*I101*100 -> 0.0 | L101: =$D101*K101*100 -> 0.0 | N101: =$D101*M101*100 -> 0.0 | P101: - General professional experience
A102: 2.7.4 | B102: - Specific professional experience | D102: 0% | F102: 0.0 | H102: 0.0 | J102: =$D102*I102*100 -> 0.0 | L102: =$D102*K102*100 -> 0.0 | N102: =$D102*M102*100 -> 0.0 | P102: - Specific professional experience
A103: 2.7.5 | B103: - Regional experience | D103: 0% | F103: 0.0 | H103: 0.0 | J103: =$D103*I103*100 -> 0.0 | L103: =$D103*K103*100 -> 0.0 | N103: =$D103*M103*100 -> 0.0 | P103: - Regional experience
A104: 2.7.6 | B104: - Development cooperation experience | D104: 0% | F104: 0.0 | H104: 0.0 | J104: =$D104*I104*100 -> 0.0 | L104: =$D104*K104*100 -> 0.0 | N104: =$D104*M104*100 -> 0.0 | P104: - Development cooperation experience
A105: 2.7.7 | B105: - Other | D105: 0% | F105: =$D105*E105*100 -> 0.0 | H105: =$D105*G105*100 -> 0.0 | J105: =$D105*I105*100 -> 0.0 | L105: =$D105*K105*100 -> 0.0 | N105: =$D105*M105*100 -> 0.0 | P105: - Other
A106: Interim total 2.7 | D106: =SUM(D99:D105) -> 0% | F106: =SUM(F99:F105) -> 0.0 | H106: =SUM(H99:H105) -> 0.0 | J106: =SUM(J99:J105) -> 0.0 | L106: =SUM(L99:L105) -> 0.0 | N106: =SUM(N99:N105) -> 0.0 | P106: Interim total 2.7
A107: 2.8 | B107: Assessment of proposed personnel for non-specified positions (provided permissible under ToRs) | P107: Assessment of proposed personnel for non-specified positions (provided permissible under ToRs)
A108: 2.8.1 | B108: Composition and sufficient assignment duration of the team in order to perform the tasks specified in the schedule and personnel assignment plan | D108: 0% | F108: =$D108*E108*100 -> 0.0 | H108: 0.0 | J108: =$D108*I108*100 -> 0.0 | L108: =$D108*K108*100 -> 0.0 | N108: =$D108*M108*100 -> 0.0 | P108: Composition and sufficient assignment duration of the team in order to perform the tasks specified in the schedule and personnel assignment plan
A109: 2.8.2 | B109: Qualifications and sufficient assignment duration of the team (professional experience and other specific experience) in order to process theme 1 | D109: 0% | F109: 0.0 | H109: 0.0 | J109: =$D109*I109*100 -> 0.0 | L109: =$D109*K109*100 -> 0.0 | N109: =$D109*M109*100 -> 0.0 | P109: Qualifications and sufficient assignment duration of the team (professional experience and other specific experience) in order to process theme 1
A110: 2.8.3 | B110: Qualifications and sufficient assignment duration of the team (professional experience and other specific experience) in order to process theme 2 | D110: 0% | F110: =$D110*E110*100 -> 0.0 | H110: =$D110*G110*100 -> 0.0 | J110: =$D110*I110*100 -> 0.0 | L110: =$D110*K110*100 -> 0.0 | N110: =$D110*M110*100 -> 0.0 | P110: Qualifications and sufficient assignment duration of the team (professional experience and other specific experience) in order to process theme 2
A111: Interim total 2.8 | D111: =SUM(D108:D110) -> 0% | F111: =SUM(F108:F110) -> 0.0 | H111: =SUM(H108:H110) -> 0.0 | J111: =SUM(J108:J110) -> 0.0 | L111: =SUM(L108:L110) -> 0.0 | N111: =SUM(N108:N110) -> 0.0 | P111: Interim total 2.8
A112: Total 2 | D112: =SUM(D48,D58,D68,D78,D88,D97,D106,D111) -> 65% | F112: =SUM(F48,F58,F68,F78,F88,F97,F106,F111) -> 0.0 | H112: =SUM(H48,H58,H68,H78,H88,H97,H106,H111) -> 0.0 | J112: =SUM(J48,J58,J68,J78,J88,J97,J106,J111) -> 0.0 | L112: =SUM(L48,L58,L68,L78,L88,L97,L106,L111) -> 0.0 | N112: =SUM(N48,N58,N68,N78,N88,N97,N106,N111) -> 0.0 | P112: Total 2
A113: Overall total 1 + 2 | D113: =D37+D112 -> 100% | F113: =F37+F112 -> 0.0 | H113: =H37+H112 -> 0.0 | J113: =J37+J112 -> 0.0 | L113: =L37+L112 -> 0.0 | N113: =N37+N112 -> 0.0 | P113: Overall total 1 + 2
A114: Assessment in % | F114: =F113/1000 -> 0.0 | H114: =H113/1000 -> 0.0 | J114: =J113/1000 -> 0.0 | L114: =L113/1000 -> 0.0 | N114: =N113/1000 -> 0.0 | P114: Assessment in %
A115: Ranking | F115: =_xlfn.RANK.EQ(F114,Wertung) -> 1.0 | H115: =_xlfn.RANK.EQ(H114,Wertung) -> 1.0 | J115: =_xlfn.RANK.EQ(J114,Wertung) -> 1.0 | L115: =_xlfn.RANK.EQ(L114,Wertung) -> 1.0 | N115: =_xlfn.RANK.EQ(N114,Wertung) -> 1.0 | P115: Ranking
A117: I hereby declare that I completed this assessment independently, to the best of my knowledge and in good faith. I will treat the information confidentially and will not pass on any details of the ongoing assessment procedure.
I119: Date, signature

Sheet Bidder 6-10
A1: Grid for the technical assessment of bids above the EU threshold | O1: Bidder 6 to 10
A2: Org. unit | C2: ='Bidder 1-5'!C2:E2 -> NRM/CC | G2: Project title | L2: Date | M2: ='Bidder 1-5'!M2:N2 -> Date
A3: Officer responsible for the commission | C3: ='Bidder 1-5'!C3:E3 -> 0 | G3: ='Bidder 1-5'!G3:K5 -> Project title: Engagement of Technical agency for Green Recovery Action Plan on Climate Resilient Livelihood for Migrants | L3: PN | M3: ='Bidder 1-5'!M3:N3 -> PN: 18.2255.0-001
A4: Assessor | C4: ='Bidder 1-5'!C4:E4 -> Name | L4: Contract no. | M4: ='Bidder 1-5'!M4:N4 -> Contract no.
A5: Version | C5: ='Bidder 1-5'!C5:E5 -> Individual assessment/overall assessment | M5: Bidder 6 to 10 of 10
E6: Enter bidder 6 | G6: Enter bidder 7 | I6: Enter bidder 8 | K6: Enter bidder 9 | M6: Enter bidder 10
B7: (1) | D7: (2) | E7: (3) | F7: (4) | G7: (3) | H7: (4) | I7: (3) | J7: (4) | K7: (3) | L7: (4) | M7: (3) | N7: (4)
B8: Criterion | D8: Weighting | E8: Points | F8: Assessment | G8: Points | H8: Assessment | I8: Points | J8: Assessment | K8: Points | L8: Assessment | M8: Points | N8: Assessment
D9: in % | E9: (max.10) | F9: (2)x(3) | G9: (max.10) | H9: (2)x(3) | I9: (max.10) | J9: (2)x(3) | K9: (max.10) | L9: (2)x(3) | M9: (max.10) | N9: (2)x(3)
A10: 1 | B10: Assessment of technical-methodological design | P10: =IF(ISBLANK(B10),A10,B10) -> Assessment of technical-methodological design
A11: 1.1 | B11: Strategy | P11: =IF(ISBLANK(B11),A11,B11) -> Strategy
A12: 1.1.1 | B12: Interpretation of the objectives in the ToRs, critical examination of tasks | D12: ='Bidder 1-5'!D12 -> 3% | F12: =$D12*E12*100 -> 0.0 | H12: =$D12*G12*100 -> 0.0 | J12: =$D12*I12*100 -> 0.0 | L12: =$D12*K12*100 -> 0.0 | N12: =$D12*M12*100 -> 0.0 | P12: Interpretation of the objectives in the ToRs, critical examination of tasks
A13: 1.1.2 | B13: Description and justification of the contractor's strategy for delivering the services put out to tender. | D13: ='Bidder 1-5'!D13 -> 5% | F13: =$D13*E13*100 -> 0.0 | H13: =$D13*G13*100 -> 0.0 | J13: =$D13*I13*100 -> 0.0 | L13: =$D13*K13*100 -> 0.0 | N13: =$D13*M13*100 -> 0.0 | P13: Description and justification of the contractor's strategy for delivering the services put out to tender.
A14: Interim total 1.1 | D14: ='Bidder 1-5'!D14 -> 8% | F14: =SUM(F12:F13) -> 0.0 | H14: =SUM(H12:H13) -> 0.0 | J14: =SUM(J12:J13) -> 0.0 | L14: =SUM(L12:L13) -> 0.0 | N14: =SUM(N12:N13) -> 0.0 | P14: Interim total 1.1
A15: 1.2 | B15: Cooperation | P15: Cooperation
A16: 1.2.1 | B16: Presentation and interaction between the relevant actors in the contractor's area of responsibility | D16: ='Bidder 1-5'!D16 -> 2% | F16: =$D16*E16*100 -> 0.0 | H16: =$D16*G16*100 -> 0.0 | J16: =$D16*I16*100 -> 0.0 | L16: =$D16*K16*100 -> 0.0 | N16: =$D16*M16*100 -> 0.0 | P16: Presentation and interaction between the relevant actors in the contractor's area of responsibility
A17: 1.2.2 | B17: Strategy for establishing cooperation and then cooperating with the relevant actors | D17: ='Bidder 1-5'!D17 -> 3% | F17: =$D17*E17*100 -> 0.0 | H17: =$D17*G17*100 -> 0.0 | J17: =$D17*I17*100 -> 0.0 | L17: =$D17*K17*100 -> 0.0 | N17: =$D17*M17*100 -> 0.0 | P17: Strategy for establishing cooperation and then cooperating with the relevant actors
A18: Interim total 1.2 | D18: ='Bidder 1-5'!D18 -> 5% | F18: =SUM(F16:F17) -> 0.0 | H18: =SUM(H16:H17) -> 0.0 | J18: =SUM(J16:J17) -> 0.0 | L18: =SUM(L16:L17) -> 0.0 | N18: =SUM(N16:N17) -> 0.0 | P18: Interim total 1.2
A19: 1.3 | B19: Steering structure | P19: Steering structure
A20: 1.3.1 | B20: Approach and procedure for steering the measures with the project partners | D20: ='Bidder 1-5'!D20 -> 2% | F20: =$D20*E20*100 -> 0.0 | H20: =$D20*G20*100 -> 0.0 | J20: =$D20*I20*100 -> 0.0 | L20: =$D20*K20*100 -> 0.0 | N20: =$D20*M20*100 -> 0.0 | P20: Approach and procedure for steering the measures with the project partners
A21: 1.3.2 | B21: Description of contractor's contribution to results monitoring and the associated challenges | D21: ='Bidder 1-5'!D21 -> 2% | F21: =$D21*E21*100 -> 0.0 | H21: =$D21*G21*100 -> 0.0 | J21: =$D21*I21*100 -> 0.0 | L21: =$D21*K21*100 -> 0.0 | N21: =$D21*M21*100 -> 0.0 | P21: Description of contractor's contribution to results monitoring and the associated challenges
A22: Interim total 1.3 | D22: ='Bidder 1-5'!D22 -> 4% | F22: =SUM(F20:F21) -> 0.0 | H22: =SUM(H20:H21) -> 0.0 | J22: =SUM(J20:J21) -> 0.0 | L22: =SUM(L20:L21) -> 0.0 | N22: =SUM(N20:N21) -> 0.0 | P22: Interim total 1.3
A23: 1.4 | B23: Processes | P23: Processes
A24: 1.4.1 | B24: Presentation and explanation of the implementation plan: work steps, milestones, schedule | D24: ='Bidder 1-5'!D24 -> 4% | F24: =$D24*E24*100 -> 0.0 | H24: =$D24*G24*100 -> 0.0 | J24: =$D24*I24*100 -> 0.0 | L24: =$D24*K24*100 -> 0.0 | N24: =$D24*M24*100 -> 0.0 | P24: Presentation and explanation of the implementation plan: work steps, milestones, schedule
A25: 1.4.2 | B25: Presentation and explanation of the integration of the partner contributions | D25: ='Bidder 1-5'!D25 -> 2% | F25: =$D25*E25*100 -> 0.0 | H25: =$D25*G25*100 -> 0.0 | J25: =$D25*I25*100 -> 0.0 | L25: =$D25*K25*100 -> 0.0 | N25: =$D25*M25*100 -> 0.0 | P25: Presentation and explanation of the integration of the partner contributions
A26: Interim total 1.4 | D26: ='Bidder 1-5'!D26 -> 6% | F26: =SUM(F24:F25) -> 0.0 | H26: =SUM(H24:H25) -> 0.0 | J26: =SUM(J24:J25) -> 0.0 | L26: =SUM(L24:L25) -> 0.0 | N26: =SUM(N24:N25) -> 0.0 | P26: Interim total 1.4
A27: 1.5 | B27: Learning and innovation | P27: Learning and innovation
A28: 1.5.1 | B28: Contractor's contribution to knowledge management at the partner and at GIZ | D28: ='Bidder 1-5'!D28 -> 2% | F28: =$D28*E28*100 -> 0.0 | H28: =$D28*G28*100 -> 0.0 | J28: =$D28*I28*100 -> 0.0 | L28: =$D28*K28*100 -> 0.0 | N28: =$D28*M28*100 -> 0.0 | P28: Contractor's contribution to knowledge management at the partner and at GIZ
A29: 1.5.2 | B29: Presentation and explanation of the measures undertaken by the contractor to promote scaling-up effects | D29: ='Bidder 1-5'!D29 -> 2% | F29: =$D29*E29*100 -> 0.0 | H29: =$D29*G29*100 -> 0.0 | J29: =$D29*I29*100 -> 0.0 | L29: =$D29*K29*100 -> 0.0 | N29: =$D29*M29*100 -> 0.0 | P29: Presentation and explanation of the measures undertaken by the contractor to promote scaling-up effects
A30: Interim total 1.5 | D30: ='Bidder 1-5'!D30 -> 4% | F30: =SUM(F28:F29) -> 0.0 | H30: =SUM(H28:H29) -> 0.0 | J30: =SUM(J28:J29) -> 0.0 | L30: =SUM(L28:L29) -> 0.0 | N30: =SUM(N28:N29) -> 0.0 | P30: Interim total 1.5
A31: 1.6 | B31: Project management of the contractor | P31: Project management of the contractor
A32: 1.6.1 | B32: Approach and procedure for coordination with/in GIZ project | D32: ='Bidder 1-5'!D32 -> 2% | F32: =$D32*E32*100 -> 0.0 | H32: =$D32*G32*100 -> 0.0 | J32: =$D32*I32*100 -> 0.0 | L32: =$D32*K32*100 -> 0.0 | N32: =$D32*M32*100 -> 0.0 | P32: Approach and procedure for coordination with/in GIZ project
A33: 1.6.2 | B33: Personnel assignment plan (who, when, what work steps) incl. explanation and specification of expert months | D33: ='Bidder 1-5'!D33 -> 2% | F33: =$D33*E33*100 -> 0.0 | H33: =$D33*G33*100 -> 0.0 | J33: =$D33*I33*100 -> 0.0 | L33: =$D33*K33*100 -> 0.0 | N33: =$D33*M33*100 -> 0.0 | P33: Personnel assignment plan (who, when, what work steps) incl. explanation and specification of expert months
A34: 1.6.3 | B34: Contractor's backstopping strategy (incl. CVs of the technical and administrative backstopper) | D34: ='Bidder 1-5'!D34 -> 2% | F34: =$D34*E34*100 -> 0.0 | H34: =$D34*G34*100 -> 0.0 | J34: =$D34*I34*100 -> 0.0 | L34: =$D34*K34*100 -> 0.0 | N34: =$D34*M34*100 -> 0.0 | P34: Contractor's backstopping strategy (incl. CVs of the technical and administrative backstopper)
A35: Interim total 1.6 | D35: ='Bidder 1-5'!D35 -> 6% | F35: =SUM(F32:F34) -> 0.0 | H35: =SUM(H32:H34) -> 0.0 | J35: =SUM(J32:J34) -> 0.0 | L35: =SUM(L32:L34) -> 0.0 | N35: =SUM(N32:N34) -> 0.0 | P35: Interim total 1.6
A36: 1.7 | B36: Further requirements | D36: ='Bidder 1-5'!D36 -> 2% | F36: =$D36*E36*100 -> 0.0 | H36: =$D36*G36*100 -> 0.0 | J36: =$D36*I36*100 -> 0.0 | L36: =$D36*K36*100 -> 0.0 | N36: =$D36*M36*100 -> 0.0 | P36: Further requirements
A37: Total 1 | D37: ='Bidder 1-5'!D37 -> 35% | F37: =SUM(F14,F18,F22,F26,F30,F35,F36) -> 0.0 | H37: =SUM(H14,H18,H22,H26,H30,H35,H36) -> 0.0 | J37: =SUM(J14,J18,J22,J26,J30,J35,J36) -> 0.0 | L37: =SUM(L14,L18,L22,L26,L30,L35,L36) -> 0.0 | N37: =SUM(N14,N18,N22,N26,N30,N35,N36) -> 0.0 | P37: Total 1
A38: 2 | B38: Assessment of proposed staff | P38: Assessment of proposed staff
A39: 2.1 | B39: Team leader (in accordance with ToR provisions/criteria) | P39: Team leader (in accordance with ToR provisions/criteria)
A40: 2.1.1 | B40: - Qualifications | D40: ='Bidder 1-5'!D40 -> 5% | F40: =$D40*E40*100 -> 0.0 | H40: 0.0 | J40: =$D40*I40*100 -> 0.0 | L40: =$D40*K40*100 -> 0.0 | N40: =$D40*M40*100 -> 0.0 | P40: - Qualifications
A41: 2.1.2 | B41: - Language | D41: ='Bidder 1-5'!D41 -> 4% | F41: 0.0 | H41: 0.0 | J41: 0.0 | L41: 0.0 | N41: 0.0 | P41: - Language
A42: 2.1.3 | B42: - General professional experience | D42: ='Bidder 1-5'!D42 -> 8% | F42: 0.0 | H42: 0.0 | J42: 0.0 | L42: 0.0 | N42: 0.0 | P42: - General professional experience
A43: 2.1.4 | B43: - Specific professional experience | D43: ='Bidder 1-5'!D43 -> 8% | F43: 0.0 | H43: 0.0 | J43: 0.0 | L43: 0.0 | N43: 0.0 | P43: - Specific professional experience
A44: 2.1.5 | B44: - Leadership/management experience | D44: ='Bidder 1-5'!D44 -> 8% | F44: 0.0 | H44: 0.0 | J44: 0.0 | L44: 0.0 | N44: 0.0 | P44: - Leadership/management experience
A45: 2.1.6 | B45: - Regional experience | D45: ='Bidder 1-5'!D45 -> 4% | F45: 0.0 | H45: 0.0 | J45: 0.0 | L45: 0.0 | N45: 0.0 | P45: - Regional experience
A46: 2.1.7 | B46: - Development cooperation experience | D46: ='Bidder 1-5'!D46 -> 2% | F46: 0.0 | H46: 0.0 | J46: 0.0 | L46: 0.0 | N46: 0.0 | P46: - Development cooperation experience
A47: 2.1.8 | B47: - Other | D47: ='Bidder 1-5'!D47 -> 0% | F47: =$D47*E47*100 -> 0.0 | H47: =$D47*G47*100 -> 0.0 | J47: =$D47*I47*100 -> 0.0 | L47: =$D47*K47*100 -> 0.0 | N47: =$D47*M47*100 -> 0.0 | P47: - Other
A48: Interim total 2.1 | D48: ='Bidder 1-5'!D48 -> 39% | F48: =SUM(F40:F47) -> 0.0 | H48: =SUM(H40:H47) -> 0.0 | J48: =SUM(J40:J47) -> 0.0 | L48: =SUM(L40:L47) -> 0.0 | N48: =SUM(N40:N47) -> 0.0 | P48: Interim total 2.1
A49: 2.2 | B49: Expert 1 (in accordance with ToR provisions/criteria) | P49: Expert 1 (in accordance with ToR provisions/criteria)
A50: 2.2.1 | B50: - Qualifications | D50: ='Bidder 1-5'!D50 -> 5% | F50: =$D50*E50*100 -> 0.0 | H50: 0.0 | J50: =$D50*I50*100 -> 0.0 | L50: =$D50*K50*100 -> 0.0 | N50: =$D50*M50*100 -> 0.0 | P50: - Qualifications
A51: 2.2.2 | B51: - Language | D51: ='Bidder 1-5'!D51 -> 3% | F51: 0.0 | H51: 0.0 | J51: 0.0 | L51: 0.0 | N51: 0.0 | P51: - Language
A52: 2.2.3 | B52: - General professional experience | D52: ='Bidder 1-5'!D52 -> 8% | F52: 0.0 | H52: 0.0 | J52: 0.0 | L52: 0.0 | N52: 0.0 | P52: - General professional experience
A53: 2.2.4 | B53: - Specific professional experience | D53: ='Bidder 1-5'!D53 -> 8% | F53: 0.0 | H53: 0.0 | J53: 0.0 | L53: 0.0 | N53: 0.0 | P53: - Specific professional experience
A54: 2.2.5 | B54: - Leadership/management experience | D54: ='Bidder 1-5'!D54 -> 0% | F54: 0.0 | H54: 0.0 | J54: 0.0 | L54: 0.0 | N54: 0.0 | P54: - Leadership/management experience
A55: 2.2.6 | B55: - Regional experience | D55: ='Bidder 1-5'!D55 -> 2% | F55: 0.0 | H55: 0.0 | J55: 0.0 | L55: 0.0 | N55: 0.0 | P55: - Regional experience
A56: 2.2.7 | B56: - Development cooperation experience | D56: ='Bidder 1-5'!D56 -> 0% | F56: 0.0 | H56: 0.0 | J56: 0.0 | L56: 0.0 | N56: 0.0 | P56: - Development cooperation experience
A57: 2.2.8 | B57: - Other | D57: ='Bidder 1-5'!D57 -> 0% | F57: =$D57*E57*100 -> 0.0 | H57: =$D57*G57*100 -> 0.0 | J57: =$D57*I57*100 -> 0.0 | L57: =$D57*K57*100 -> 0.0 | N57: =$D57*M57*100 -> 0.0 | P57: - Other
A58: Interim total 2.2 | D58: ='Bidder 1-5'!D58 -> 26% | F58: =SUM(F50:F57) -> 0.0 | H58: =SUM(H50:H57) -> 0.0 | J58: =SUM(J50:J57) -> 0.0 | L58: =SUM(L50:L57) -> 0.0 | N58: =SUM(N50:N57) -> 0.0 | P58: Interim total 2.2
A59: 2.3 | B59: Expert 2 (in accordance with ToR provisions/criteria) | P59: Expert 2 (in accordance with ToR provisions/criteria)
A60: 2.3.1 | B60: - Qualifications | D60: ='Bidder 1-5'!D60 -> 0% | F60: =$D60*E60*100 -> 0.0 | H60: 0.0 | J60: =$D60*I60*100 -> 0.0 | L60: =$D60*K60*100 -> 0.0 | N60: =$D60*M60*100 -> 0.0 | P60: - Qualifications
A61: 2.3.2 | B61: - Language | D61: ='Bidder 1-5'!D61 -> 0% | F61: 0.0 | H61: 0.0 | J61: 0.0 | L61: 0.0 | N61: 0.0 | P61: - Language
A62: 2.3.3 | B62: - General professional experience | D62: ='Bidder 1-5'!D62 -> 0% | F62: 0.0 | H62: 0.0 | J62: 0.0 | L62: 0.0 | N62: 0.0 | P62: - General professional experience
A63: 2.3.4 | B63: - Specific professional experience | D63: ='Bidder 1-5'!D63 -> 0% | F63: 0.0 | H63: 0.0 | J63: 0.0 | L63: 0.0 | N63: 0.0 | P63: - Specific professional experience
A64: 2.3.5 | B64: - Leadership/management experience | D64: ='Bidder 1-5'!D64 -> 0% | F64: 0.0 | H64: 0.0 | J64: 0.0 | L64: 0.0 | N64: 0.0 | P64: - Leadership/management experience
A65: 2.3.6 | B65: - Regional experience | D65: ='Bidder 1-5'!D65 -> 0% | F65: 0.0 | H65: 0.0 | J65: 0.0 | L65: 0.0 | N65: 0.0 | P65: - Regional experience
A66: 2.3.7 | B66: - Development cooperation experience | D66: ='Bidder 1-5'!D66 -> 0% | F66: 0.0 | H66: 0.0 | J66: 0.0 | L66: 0.0 | N66: 0.0 | P66: - Development cooperation experience
A67: 2.3.8 | B67: - Other | D67: ='Bidder 1-5'!D67 -> 0% | F67: =$D67*E67*100 -> 0.0 | H67: =$D67*G67*100 -> 0.0 | J67: =$D67*I67*100 -> 0.0 | L67: =$D67*K67*100 -> 0.0 | N67: =$D67*M67*100 -> 0.0 | P67: - Other
A68: Interim total 2.3 | D68: ='Bidder 1-5'!D68 -> 0% | F68: =SUM(F60:F67) -> 0.0 | H68: =SUM(H60:H67) -> 0.0 | J68: =SUM(J60:J67) -> 0.0 | L68: =SUM(L60:L67) -> 0.0 | N68: =SUM(N60:N67) -> 0.0 | P68: Interim total 2.3
A69: 2.4 | B69: Expert 3 (in accordance with ToR provisions/criteria) | P69: Expert 3 (in accordance with ToR provisions/criteria)
A70: 2.4.1 | B70: - Qualifications | D70: ='Bidder 1-5'!D70 -> 0% | F70: =$D70*E70*100 -> 0.0 | H70: 0.0 | J70: =$D70*I70*100 -> 0.0 | L70: =$D70*K70*100 -> 0.0 | N70: =$D70*M70*100 -> 0.0 | P70: - Qualifications
A71: 2.4.2 | B71: - Language | D71: ='Bidder 1-5'!D71 -> 0% | F71: 0.0 | H71: 0.0 | J71: 0.0 | L71: 0.0 | N71: 0.0 | P71: - Language
A72: 2.4.3 | B72: - General professional experience | D72: ='Bidder 1-5'!D72 -> 0% | F72: 0.0 | H72: 0.0 | J72: 0.0 | L72: 0.0 | N72: 0.0 | P72: - General professional experience
A73: 2.4.4 | B73: - Specific professional experience | D73: ='Bidder 1-5'!D73 -> 0% | F73: 0.0 | H73: 0.0 | J73: 0.0 | L73: 0.0 | N73: 0.0 | P73: - Specific professional experience
A74: 2.4.5 | B74: - Leadership/management experience | D74: ='Bidder 1-5'!D74 -> 0% | F74: 0.0 | H74: 0.0 | J74: 0.0 | L74: 0.0 | N74: 0.0 | P74: - Leadership/management experience
A75: 2.4.6 | B75: - Regional experience | D75: ='Bidder 1-5'!D75 -> 0% | F75: 0.0 | H75: 0.0 | J75: 0.0 | L75: 0.0 | N75: 0.0 | P75: =IF(ISBLANK(B75),A75,B75) -> - Regional experience
A76: 2.4.7 | B76: - Development cooperation experience | D76: ='Bidder 1-5'!D76 -> 0% | F76: 0.0 | H76: 0.0 | J76: 0.0 | L76: 0.0 | N76: 0.0 | P76: - Development cooperation experience
A77: 2.4.8 | B77: - Other | D77: ='Bidder 1-5'!D77 -> 0% | F77: =$D77*E77*100 -> 0.0 | H77: =$D77*G77*100 -> 0.0 | J77: =$D77*I77*100 -> 0.0 | L77: =$D77*K77*100 -> 0.0 | N77: =$D77*M77*100 -> 0.0 | P77: - Other
A78: Interim total 2.4 | D78: ='Bidder 1-5'!D78 -> 0% | F78: =SUM(F70:F77) -> 0.0 | H78: =SUM(H70:H77) -> 0.0 | J78: =SUM(J70:J77) -> 0.0 | L78: =SUM(L70:L77) -> 0.0 | N78: =SUM(N70:N77) -> 0.0 | P78: Interim total 2.4
A79: 2.5 | B79: Expert 4 (in accordance with ToR provisions/criteria) | P79: Expert 4 (in accordance with ToR provisions/criteria)
A80: 2.5.1 | B80: - Qualifications | D80: ='Bidder 1-5'!D80 -> 0% | F80: =$D80*E80*100 -> 0.0 | H80: 0.0 | J80: =$D80*I80*100 -> 0.0 | L80: =$D80*K80*100 -> 0.0 | N80: =$D80*M80*100 -> 0.0 | P80: - Qualifications
A81: 2.5.2 | B81: - Language | D81: ='Bidder 1-5'!D81 -> 0% | F81: 0.0 | H81: 0.0 | J81: 0.0 | L81: 0.0 | N81: 0.0 | P81: - Language
A82: 2.5.3 | B82: - General professional experience | D82: ='Bidder 1-5'!D82 -> 0% | F82: 0.0 | H82: 0.0 | J82: 0.0 | L82: 0.0 | N82: 0.0 | P82: - General professional experience
A83: 2.5.4 | B83: - Specific professional experience | D83: ='Bidder 1-5'!D83 -> 0% | F83: 0.0 | H83: 0.0 | J83: 0.0 | L83: 0.0 | N83: 0.0 | P83: - Specific professional experience
A84: 2.5.5 | B84: - Leadership/management experience | D84: ='Bidder 1-5'!D84 -> 0% | F84: 0.0 | H84: 0.0 | J84: 0.0 | L84: 0.0 | N84: 0.0 | P84: - Leadership/management experience
A85: 2.5.6 | B85: - Regional experience | D85: ='Bidder 1-5'!D85 -> 0% | F85: 0.0 | H85: 0.0 | J85: 0.0 | L85: 0.0 | N85: 0.0 | P85: - Regional experience
A86: 2.5.7 | B86: - Development cooperation experience | D86: ='Bidder 1-5'!D86 -> 0% | F86: 0.0 | H86: 0.0 | J86: 0.0 | L86: 0.0 | N86: 0.0 | P86: - Development cooperation experience
A87: 2.5.8 | B87: - Other | D87: ='Bidder 1-5'!D87 -> 0% | F87: =$D87*E87*100 -> 0.0 | H87: =$D87*G87*100 -> 0.0 | J87: =$D87*I87*100 -> 0.0 | L87: =$D87*K87*100 -> 0.0 | N87: =$D87*M87*100 -> 0.0 | P87: - Other
A88: Interim total 2.5 | D88: ='Bidder 1-5'!D88 -> 0% | F88: =SUM(F80:F87) -> 0.0 | H88: =SUM(H80:H87) -> 0.0 | J88: =SUM(J80:J87) -> 0.0 | L88: =SUM(L80:L87) -> 0.0 | N88: =SUM(N80:N87) -> 0.0 | P88: Interim total 2.5
A89: 2.6 | B89: Short-term expert pool 1 (in accordance with ToR provisions/criteria) | P89: Short-term expert pool 1 (in accordance with ToR provisions/criteria)
A90: 2.6.1 | B90: - Qualifications | D90: ='Bidder 1-5'!D90 -> 0% | F90: =$D90*E90*100 -> 0.0 | H90: 0.0 | J90: =$D90*I90*100 -> 0.0 | L90: =$D90*K90*100 -> 0.0 | N90: =$D90*M90*100 -> 0.0 | P90: - Qualifications
A91: 2.6.2 | B91: - Language | D91: ='Bidder 1-5'!D91 -> 0% | F91: 0.0 | H91: 0.0 | J91: 0.0 | L91: 0.0 | N91: 0.0 | P91: - Language
A92: 2.6.3 | B92: - General professional experience | D92: ='Bidder 1-5'!D92 -> 0% | F92: 0.0 | H92: 0.0 | J92: 0.0 | L92: 0.0 | N92: 0.0 | P92: - General professional experience
A93: 2.6.4 | B93: - Specific professional experience | D93: ='Bidder 1-5'!D93 -> 0% | F93: 0.0 | H93: 0.0 | J93: 0.0 | L93: 0.0 | N93: 0.0 | P93: - Specific professional experience
A94: 2.6.5 | B94: - Regional experience | D94: ='Bidder 1-5'!D94 -> 0% | F94: 0.0 | H94: 0.0 | J94: 0.0 | L94: 0.0 | N94: 0.0 | P94: - Regional experience
A95: 2.6.6 | B95: - Development cooperation experience | D95: ='Bidder 1-5'!D95 -> 0% | F95: 0.0 | H95: 0.0 | J95: 0.0 | L95: 0.0 | N95: 0.0 | P95: - Development cooperation experience
A96: 2.6.7 | B96: - Other | D96: ='Bidder 1-5'!D96 -> 0% | F96: =$D96*E96*100 -> 0.0 | H96: =$D96*G96*100 -> 0.0 | J96: =$D96*I96*100 -> 0.0 | L96: =$D96*K96*100 -> 0.0 | N96: =$D96*M96*100 -> 0.0 | P96: - Other
A97: Interim total 2.6 | D97: ='Bidder 1-5'!D97 -> 0% | F97: =SUM(F90:F96) -> 0.0 | H97: =SUM(H90:H96) -> 0.0 | J97: =SUM(J90:J96) -> 0.0 | L97: =SUM(L90:L96) -> 0.0 | N97: =SUM(N90:N96) -> 0.0 | P97: Interim total 2.6
A98: 2.7 | B98: Short-term expert pool 2 (in accordance with ToR provisions/criteria) | P98: Short-term expert pool 2 (in accordance with ToR provisions/criteria)
A99: 2.7.1 | B99: - Qualifications | D99: ='Bidder 1-5'!D99 -> 0% | F99: =$D99*E99*100 -> 0.0 | H99: 0.0 | J99: =$D99*I99*100 -> 0.0 | L99: =$D99*K99*100 -> 0.0 | N99: =$D99*M99*100 -> 0.0 | P99: - Qualifications
A100: 2.7.2 | B100: - Language | D100: ='Bidder 1-5'!D100 -> 0% | F100: 0.0 | H100: 0.0 | J100: 0.0 | L100: 0.0 | N100: 0.0 | P100: - Language
A101: 2.7.3 | B101: - General professional experience | D101: ='Bidder 1-5'!D101 -> 0% | F101: 0.0 | H101: 0.0 | J101: 0.0 | L101: 0.0 | N101: 0.0 | P101: - General professional experience
A102: 2.7.4 | B102: - Specific professional experience | D102: ='Bidder 1-5'!D102 -> 0% | F102: 0.0 | H102: 0.0 | J102: 0.0 | L102: 0.0 | N102: 0.0 | P102: - Specific professional experience
A103: 2.7.5 | B103: - Regional experience | D103: ='Bidder 1-5'!D103 -> 0% | F103: 0.0 | H103: 0.0 | J103: 0.0 | L103: 0.0 | N103: 0.0 | P103: - Regional experience
A104: 2.7.6 | B104: - Development cooperation experience | D104: ='Bidder 1-5'!D104 -> 0% | F104: 0.0 | H104: 0.0 | J104: 0.0 | L104: 0.0 | N104: 0.0 | P104: - Development cooperation experience
A105: 2.7.7 | B105: - Other | D105: ='Bidder 1-5'!D105 -> 0% | F105: =$D105*E105*100 -> 0.0 | H105: =$D105*G105*100 -> 0.0 | J105: =$D105*I105*100 -> 0.0 | L105: =$D105*K105*100 -> 0.0 | N105: =$D105*M105*100 -> 0.0 | P105: - Other
A106: Interim total 2.7 | D106: ='Bidder 1-5'!D106 -> 0% | F106: =SUM(F99:F105) -> 0.0 | H106: =SUM(H99:H105) -> 0.0 | J106: =SUM(J99:J105) -> 0.0 | L106: =SUM(L99:L105) -> 0.0 | N106: =SUM(N99:N105) -> 0.0 | P106: Interim total 2.7
A107: 2.8 | B107: Assessment of proposed personnel for non-specified positions (provided permissible under ToRs) | P107: Assessment of proposed personnel for non-specified positions (provided permissible under ToRs)
A108: 2.8.1 | B108: Composition and sufficient assignment duration of the team in order to perform the tasks specified in the schedule and personnel assignment plan | D108: ='Bidder 1-5'!D108 -> 0% | F108: =$D108*E108*100 -> 0.0 | H108: 0.0 | J108: =$D108*I108*100 -> 0.0 | L108: =$D108*K108*100 -> 0.0 | N108: =$D108*M108*100 -> 0.0 | P108: Composition and sufficient assignment duration of the team in order to perform the tasks specified in the schedule and personnel assignment plan
A109: 2.8.2 | B109: Qualifications and sufficient assignment duration of the team (professional experience and other specific experience) in order to process theme 1 | D109: ='Bidder 1-5'!D109 -> 0% | F109: 0.0 | H109: 0.0 | J109: 0.0 | L109: 0.0 | N109: 0.0 | P109: Qualifications and sufficient assignment duration of the team (professional experience and other specific experience) in order to process theme 1
A110: 2.8.3 | B110: Qualifications and sufficient assignment duration of the team (professional experience and other specific experience) in order to process theme 2 | D110: ='Bidder 1-5'!D110 -> 0% | F110: =$D110*E110*100 -> 0.0 | H110: =$D110*G110*100 -> 0.0 | J110: =$D110*I110*100 -> 0.0 | L110: =$D110*K110*100 -> 0.0 | N110: =$D110*M110*100 -> 0.0 | P110: Qualifications and sufficient assignment duration of the team (professional experience and other specific experience) in order to process theme 2
A111: Interim total 2.8 | D111: ='Bidder 1-5'!D111 -> 0% | F111: =SUM(F108:F110) -> 0.0 | H111: =SUM(H108:H110) -> 0.0 | J111: =SUM(J108:J110) -> 0.0 | L111: =SUM(L108:L110) -> 0.0 | N111: =SUM(N108:N110) -> 0.0 | P111: Interim total 2.8
A112: Total 2 | D112: ='Bidder 1-5'!D112 -> 65% | F112: =SUM(F48,F58,F68,F78,F88,F97,F106,F111) -> 0.0 | H112: =SUM(H48,H58,H68,H78,H88,H97,H106,H111) -> 0.0 | J112: =SUM(J48,J58,J68,J78,J88,J97,J106,J111) -> 0.0 | L112: =SUM(L48,L58,L68,L78,L88,L97,L106,L111) -> 0.0 | N112: =SUM(N48,N58,N68,N78,N88,N97,N106,N111) -> 0.0 | P112: Total 2
A113: Overall total 1 + 2 | D113: ='Bidder 1-5'!D113 -> 100% | F113: =F37+F112 -> 0.0 | H113: =H37+H112 -> 0.0 | J113: =J37+J112 -> 0.0 | L113: =L37+L112 -> 0.0 | N113: =N37+N112 -> 0.0 | P113: Overall total 1 + 2
A114: Assessment in % | F114: =F113/1000 -> 0.0 | H114: =H113/1000 -> 0.0 | J114: =J113/1000 -> 0.0 | L114: =L113/1000 -> 0.0 | N114: =N113/1000 -> 0.0 | P114: Assessment in %
A115: Ranking | F115: =_xlfn.RANK.EQ(F114,Wertung) -> 1.0 | H115: =_xlfn.RANK.EQ(H114,Wertung) -> 1.0 | J115: =_xlfn.RANK.EQ(J114,Wertung) -> 1.0 | L115: =_xlfn.RANK.EQ(L114,Wertung) -> 1.0 | N115: =_xlfn.RANK.EQ(N114,Wertung) -> 1.0 | P115: Ranking
A117: I hereby declare that I completed this assessment independently, to the best of my knowledge and in good faith. I will treat the information confidentially and will not pass on any details of the ongoing assessment procedure.
I119: Date, signature
